fUSD/lending_fUSD_20250209
["ID","MTS","AMOUNT","RATE_DAILY","PERIOD"]
[352393977,1739076634783,-500.0,8.835e-05,2]
[352393978,1739076634792,-500.0,8.835e-05,2]
[352393979,1739076634802,-595.69,8.835e-05,2]
[352393980,1739076634811,-561.26,8.835e-05,2]
[352393981,1739076634821,-500.0,8.835e-05,2]
[352393982,1739076634830,-500.0,8.835e-05,2]
[352393983,1739076634840,-500.0,8.835e-05,2]
[352393984,1739076634850,-500.0,8.835e-05,2]
[352393985,1739076634859,-500.0,8.835e-05,2]
[352393986,1739076634869,-614.2,8.835e-05,2]
[352393987,1739076634879,-500.0,8.835e-05,2]
[352393988,1739076634888,-934.74,8.835e-05,2]
[352393989,1739076634897,-498.99310883,8.835e-05,2]
[352393990,1739076634906,-500.0,8.835e-05,2]
[352393991,1739076634915,-500.0,8.835e-05,2]
[352393992,1739076634925,-500.0,8.835e-05,2]
[352393993,1739076634935,-500.0,8.835e-05,2]
[352393994,1739076634945,-491.0,8.835e-05,2]
[352393995,1739076634954,-500.0,8.835e-05,2]
[352393996,1739076634964,-1217.68,8.835e-05,2]
[352393997,1739076634974,-500.0,8.835e-05,2]
[352393998,1739076634983,-500.0,8.835e-05,2]
[352393999,1739076634993,-576.79,8.835e-05,2]
[352394000,1739076635002,-500.0,8.835e-05,2]
[352394001,1739076635011,-501.34854279,8.835e-05,2]
[352394002,1739076635020,-500.0,8.835e-05,2]
[352394003,1739076635030,-500.0,8.835e-05,2]
[352394004,1739076635040,-500.0,8.835e-05,2]
[352394005,1739076635049,-500.0,8.835e-05,2]
[352394006,1739076635059,-2420.22,8.835e-05,2]
[352394007,1739076635068,-599.11,8.835e-05,2]
[352394008,1739076635078,-500.0,8.835e-05,2]
[352394009,1739076635088,-500.0,8.835e-05,2]
[352394010,1739076635098,-500.0,8.835e-05,2]
[352394011,1739076635107,-553.85,8.835e-05,2]
[352394012,1739076635117,-500.0,8.835e-05,2]
[352394013,1739076635127,-500.0,8.835e-05,2]
[352394014,1739076635136,-500.0,8.835e-05,2]
[352394015,1739076635146,-500.0,8.835e-05,2]
[352394016,1739076635155,-501.12465716,8.835e-05,2]
[352394017,1739076635165,-502.32282351,8.835e-05,2]
[352394018,1739076635174,-500.0,8.835e-05,2]
[352394019,1739076635183,-500.0,8.835e-05,2]
[352394020,1739076635193,-500.0,8.835e-05,2]
[352394021,1739076635204,-500.0,8.835e-05,2]
[352394022,1739076635214,-526.57351651,8.835e-05,2]
[352394023,1739076635224,-501.84633401,8.835e-05,2]
[352394024,1739076635233,-802.79,8.835e-05,2]
[352394025,1739076635242,-502.80383403,8.835e-05,2]
[352394026,1739076635252,-696.38,8.835e-05,2]
[352394027,1739076635261,-500.0,8.835e-05,2]
[352394028,1739076635271,-506.68341413,8.835e-05,2]
[352394029,1739076635281,-500.0,8.835e-05,2]
[352394030,1739076635291,-500.0,8.835e-05,2]
[352394031,1739076635300,-500.0,8.835e-05,2]
[352394032,1739076635310,-500.0,8.835e-05,2]
[352394033,1739076635541,-500.0,8.835e-05,2]
[352394034,1739076635554,-500.0,8.835e-05,2]
[352394035,1739076635564,-501.3394026,8.835e-05,2]
[352394036,1739076635574,-500.0,8.835e-05,2]
[352394037,1739076635583,-500.0,8.835e-05,2]
[352394038,1739076635592,-365.45451011,8.835e-05,2]
[352394039,1739076635602,-500.0,8.835e-05,2]
[352394040,1739076635612,-500.0,8.835e-05,2]
[352394041,1739076635621,-500.0,8.835e-05,2]
[352394042,1739076635632,-500.0,8.835e-05,2]
[352394043,1739076635641,-500.0,8.835e-05,2]
[352394044,1739076635651,-500.0,8.835e-05,2]
[352394045,1739076635660,-500.0,8.835e-05,2]
[352394046,1739076635670,-506.15512226,8.835e-05,2]
[352394047,1739076635679,-500.0,8.835e-05,2]
[352394048,1739076635688,-500.0,8.835e-05,2]
[352394049,1739076635698,-501.77944742,8.835e-05,2]
[352394050,1739076635708,-710.21,8.835e-05,2]
[352394051,1739076635717,-500.0,8.835e-05,2]
[352394052,1739076635727,-578.14,8.835e-05,2]
[352394053,1739076635736,-326.87727629,8.835e-05,2]
[352394054,1739076635745,-500.0,8.835e-05,2]
[352394055,1739076635754,-500.0,8.835e-05,2]
[352394056,1739076635764,-500.0,8.835e-05,2]
[352394057,1739076635774,-500.0,8.835e-05,2]
[352394058,1739076635783,-500.0,8.835e-05,2]
[352394059,1739076635793,-500.0,8.835e-05,2]
[352394060,1739076635802,-500.0,8.835e-05,2]
[352394061,1739076635811,-500.0,8.835e-05,2]
[352394062,1739076635820,-503.97026762,8.835e-05,2]
[352394063,1739076635831,-500.0,8.835e-05,2]
[352394064,1739076635840,-500.0,8.835e-05,2]
[352394065,1739076635850,-501.85318914,8.835e-05,2]
[352394066,1739076635859,-930.43,8.835e-05,2]
[352394067,1739076635868,-500.0,8.835e-05,2]
[352394068,1739076635878,-500.0,8.835e-05,2]
[352394069,1739076635887,-500.0,8.835e-05,2]
[352394070,1739076635897,-502.53245363,8.835e-05,2]
[352394071,1739076635907,-500.0,8.835e-05,2]
[352394072,1739076635916,-500.0,8.835e-05,2]
[352394073,1739076635925,-500.0,8.835e-05,2]
[352394074,1739076635935,-500.0,8.835e-05,2]
[352394075,1739076635945,-1820.59,8.835e-05,2]
[352394076,1739076635954,-951.34,8.835e-05,2]
[352394077,1739076635963,-500.0,8.835e-05,2]
[352394078,1739076635973,-500.0,8.835e-05,2]
[352394079,1739076635982,-500.0,8.835e-05,2]
[352394080,1739076635992,-500.0,8.835e-05,2]
[352394081,1739076636002,-500.0,8.835e-05,2]
[352394082,1739076636012,-500.0,8.835e-05,2]
[352394083,1739076636022,-500.0,8.835e-05,2]
[352394084,1739076636031,-500.0,8.835e-05,2]
[352394085,1739076636040,-500.0,8.835e-05,2]
[352394086,1739076636050,-500.0,8.835e-05,2]
[352394087,1739076636059,-500.0,8.835e-05,2]
[352394088,1739076636069,-500.0,8.835e-05,2]
[352394089,1739076636079,-500.0,8.835e-05,2]
[352394090,1739076636089,-593.69,8.835e-05,2]
[352394091,1739076636097,-500.0,8.835e-05,2]
[352394092,1739076636106,-500.0,8.835e-05,2]
[352394093,1739076636116,-500.0,8.835e-05,2]
[352394094,1739076636125,-500.0,8.835e-05,2]
[352394095,1739076636135,-603.76376964,8.835e-05,2]
[352394096,1739076636145,-500.0,8.835e-05,2]
[352394097,1739076636154,-501.52783271,8.835e-05,2]
[352394098,1739076636164,-505.59,8.835e-05,2]
[352394099,1739076636173,-500.0,8.835e-05,2]
[352394100,1739076636184,-500.0,8.835e-05,2]
[352394101,1739076636195,-500.0,8.835e-05,2]
[352394102,1739076636204,-500.0,8.835e-05,2]
[352394103,1739076636216,-500.0,8.835e-05,2]
[352394104,1739076636227,-500.0,8.835e-05,2]
[352394105,1739076636237,-507.14479174,8.835e-05,2]
[352394106,1739076636246,-768.25,8.835e-05,2]
[352394107,1739076636257,-502.64603549,8.835e-05,2]
[352394108,1739076636267,-1073.3,8.835e-05,2]
[352394109,1739076636277,-500.0,8.835e-05,2]
[352394110,1739076636286,-500.0,8.835e-05,2]
[352394111,1739076636296,-500.0,8.835e-05,2]
[352394112,1739076636306,-305.182,8.836e-05,2]
[352394113,1739076636315,-2289.2421,8.836e-05,2]
[352394114,1739076636326,-3419.3232,8.836e-05,2]
[352394115,1739076636335,-16825.96818529,8.836e-05,2]
[352394116,1739076636349,-747.34999,8.836e-05,2]
[352394117,1739076636362,-878.75132471,8.836e-05,2]
[352394118,1739076636371,-1859.7765,8.836e-05,2]
[352394119,1739076636380,-961.47217529,8.836e-05,2]
[352394120,1739076636404,-1372.6227422,8.836e-05,2]
[352394121,1739076636415,-1132.87600634,8.836e-05,2]
[352394122,1739076636427,-11151.53617617,8.836e-05,2]
[352394123,1739076636437,-859.4347,8.836e-05,2]
[352394124,1739076636447,-544.0449,8.836e-05,2]
[352394125,1739076636458,-242066.0283,8.836e-05,2]
[352394126,1739076636469,-1255.968,8.836e-05,2]
[352394127,1739076636479,-502.4849,8.836e-05,2]
[352394128,1739076636488,-500.0,8.851e-05,2]
[352394129,1739076636498,-2500.0,8.851e-05,2]
[352394130,1739076636507,-1000.0,8.851e-05,2]
[352394131,1739076636516,-9980.0,8.9e-05,7]
[352394132,1739076636526,-500.0,8.972e-05,2]
[352394133,1739076636535,-500.0,8.972e-05,2]
[352394134,1739076636544,-500.0,8.972e-05,2]
[352394135,1739076636558,-526.00520104,8.972e-05,2]
[352394136,1739076636567,-514.42875825,8.972e-05,2]
[352394137,1739076636577,-500.0,8.972e-05,2]
[352394138,1739076636588,-500.0,8.972e-05,2]
[352394139,1739076636598,-500.0,8.972e-05,2]
[352394140,1739076636608,-150.87459158,8.972e-05,2]
[352394141,1739076636618,-500.0,8.972e-05,2]
[352394142,1739076636628,-500.0,8.972e-05,2]
[352394143,1739076636638,-500.0,8.972e-05,2]
[352394144,1739076636647,-500.0,8.972e-05,2]
[352394145,1739076636656,-500.0,8.972e-05,2]
[352394146,1739076636669,-500.0,8.972e-05,2]
[352394147,1739076636680,-500.0,8.972e-05,2]
[352394148,1739076636690,-205.084992,8.972e-05,2]
[352394149,1739076636700,-500.0,8.972e-05,2]
[352394150,1739076636710,-254.811809,8.972e-05,2]
[352394151,1739076636720,-500.0,8.972e-05,2]
[352394152,1739076636730,-500.0,8.972e-05,2]
[352394153,1739076636740,-500.0,8.972e-05,2]
[352394154,1739076636749,-500.0,8.972e-05,2]
[352394155,1739076636758,-500.0,8.972e-05,2]
[352394156,1739076636768,-500.0,8.972e-05,2]
[352394157,1739076636778,-500.0,8.972e-05,2]
[352394158,1739076636787,-500.0,8.972e-05,2]
[352394159,1739076636797,-500.0,8.972e-05,2]
[352394160,1739076636806,-500.0,8.972e-05,2]
[352394161,1739076636815,-500.0,8.972e-05,2]
[352394162,1739076636825,-500.0,8.972e-05,2]
[352394163,1739076636834,-500.0,8.972e-05,2]
[352394164,1739076636843,-500.0,8.972e-05,2]
[352394165,1739076636853,-659.91,8.972e-05,2]
[352394166,1739076636863,-421.22798426,8.972e-05,2]
[352394167,1739076636872,-500.0,8.972e-05,2]
[352394168,1739076636881,-500.0,8.972e-05,2]
[352394169,1739076636891,-776.05,8.972e-05,2]
[352394170,1739076636900,-500.0,8.972e-05,2]
[352394171,1739076636910,-1523.21,8.972e-05,2]
[352394172,1739076636919,-500.0,8.972e-05,2]
[352394173,1739076636929,-788.97,8.972e-05,2]
[352394174,1739076636938,-500.0,8.972e-05,2]
[352394175,1739076636948,-500.0,8.972e-05,2]
[352394176,1739076636957,-500.0,8.972e-05,2]
[352394177,1739076636967,-500.0,8.972e-05,2]
[352394178,1739076636977,-601.66,8.972e-05,2]
[352394179,1739076636986,-875.01,8.972e-05,2]
[352394180,1739076636996,-500.0,8.972e-05,2]
[352394181,1739076637006,-500.0,8.972e-05,2]
[352394182,1739076637015,-500.0,8.972e-05,2]
[352394183,1739076637025,-500.0,8.972e-05,2]
[352394184,1739076637034,-500.0,8.972e-05,2]
[352394185,1739076637043,-533.93,8.972e-05,2]
[352394186,1739076637053,-562.88,8.972e-05,2]
[352394187,1739076637062,-500.0,8.972e-05,2]
[352394188,1739076637072,-500.0,8.972e-05,2]
[352394189,1739076637082,-500.0,8.972e-05,2]
[352394190,1739076637093,-500.0,8.972e-05,2]
[352394191,1739076637102,-500.0,8.972e-05,2]
[352394192,1739076637112,-500.0,8.972e-05,2]
[352394193,1739076637121,-868.43,8.972e-05,2]
[352394194,1739076637131,-500.0,8.972e-05,2]
[352394195,1739076637141,-500.0,8.972e-05,2]
[352394196,1739076637151,-500.0,8.972e-05,2]
[352394197,1739076637160,-500.0,8.972e-05,2]
[352394198,1739076637170,-1231.28,8.972e-05,2]
[352394199,1739076637180,-500.0,8.972e-05,2]
[352394200,1739076637189,-500.0,8.972e-05,2]
[352394201,1739076637198,-500.0,8.972e-05,2]
[352394202,1739076637207,-500.0,8.972e-05,2]
[352394203,1739076637216,-500.0,8.972e-05,2]
[352394204,1739076637226,-500.0,8.972e-05,2]
[352394205,1739076637236,-500.0,8.972e-05,2]
[352394206,1739076637246,-500.0,8.972e-05,2]
[352394207,1739076637255,-500.0,8.972e-05,2]
[352394208,1739076637265,-526.88,8.972e-05,2]
[352394209,1739076637275,-500.0,8.972e-05,2]
[352394210,1739076637284,-1294.54,8.972e-05,2]
[352394211,1739076637293,-500.0,8.972e-05,2]
[352394212,1739076637304,-500.0,8.972e-05,2]
[352394213,1739076637314,-532.97,8.972e-05,2]
[352394214,1739076637324,-569.17,8.972e-05,2]
[352394215,1739076637333,-473.8828497,8.972e-05,2]
[352394216,1739076637343,-500.0,8.972e-05,2]
[352394217,1739076637352,-595.69,8.972e-05,2]
[352394218,1739076637362,-561.26,8.972e-05,2]
[352394219,1739076637371,-500.0,8.972e-05,2]
[352394220,1739076637381,-614.2,8.972e-05,2]
[352394221,1739076637390,-934.74,8.972e-05,2]
[352394222,1739076637399,-500.0,8.972e-05,2]
[352394223,1739076637408,-500.0,8.972e-05,2]
[352394224,1739076637417,-500.0,8.972e-05,2]
[352394225,1739076637427,-1217.68,8.972e-05,2]
[352394226,1739076637436,-576.79,8.972e-05,2]
[352394227,1739076637445,-500.0,8.972e-05,2]
[352394228,1739076637456,-2420.22,8.972e-05,2]
[352394229,1739076637466,-500.0,8.972e-05,2]
[352394230,1739076637475,-500.0,8.972e-05,2]
[352394231,1739076637484,-553.85,8.972e-05,2]
[352394232,1739076637494,-500.0,8.972e-05,2]
[352394233,1739076637503,-802.79,8.972e-05,2]
[352394234,1739076637513,-696.38,8.972e-05,2]
[352394235,1739076637522,-500.0,8.972e-05,2]
[352394236,1739076637532,-500.0,8.972e-05,2]
[352394237,1739076637542,-500.0,8.972e-05,2]
[352394238,1739076637553,-188.56,8.972e-05,2]
[352394239,1739076637563,-500.0,8.972e-05,2]
[352394240,1739076637572,-710.21,8.972e-05,2]
[352394241,1739076637581,-500.0,8.972e-05,2]
[352394242,1739076637591,-578.14,8.972e-05,2]
[352394243,1739076637600,-583.72,8.972e-05,2]
[352394244,1739076637610,-500.0,8.972e-05,2]
[352394245,1739076637619,-930.43,8.972e-05,2]
[352394246,1739076637629,-500.0,8.972e-05,2]
[352394247,1739076637639,-500.0,8.972e-05,2]
[352394248,1739076637648,-500.0,8.972e-05,2]
[352394249,1739076637657,-1820.59,8.972e-05,2]
[352394250,1739076637667,-951.34,8.972e-05,2]
[352394251,1739076637676,-500.0,8.972e-05,2]
[352394252,1739076637685,-500.0,8.972e-05,2]
[352394253,1739076637695,-500.0,8.972e-05,2]
[352394254,1739076637704,-500.0,8.972e-05,2]
[352394255,1739076637713,-500.0,8.972e-05,2]
[352394256,1739076637723,-593.69,8.972e-05,2]
[352394257,1739076637732,-500.0,8.972e-05,2]
[352394258,1739076637742,-500.0,8.972e-05,2]
[352394259,1739076637751,-500.0,8.972e-05,2]
[352394260,1739076637761,-505.59,8.972e-05,2]
[352394261,1739076637770,-500.0,8.972e-05,2]
[352394262,1739076637780,-500.0,8.972e-05,2]
[352394263,1739076637792,-768.25,8.972e-05,2]
[352394264,1739076637802,-1073.3,8.972e-05,2]
[352394265,1739076637811,-500.0,8.972e-05,2]
[352394266,1739076637821,-9790.8691,8.973e-05,2]
[352394267,1739076637831,-5000.0,8.973e-05,2]
[352394268,1739076637840,-9980.0,9e-05,8]
[352394269,1739076637857,-500.0,9.081e-05,2]
[352394270,1739076637867,-9980.0,9.1e-05,9]
[352394271,1739076637876,-500.0,9.109e-05,2]
[352394272,1739076637885,-500.0,9.109e-05,2]
[352394273,1739076637895,-500.0,9.109e-05,2]
[352394274,1739076637905,-500.0,9.109e-05,2]
[352394275,1739076637914,-500.0,9.109e-05,2]
[352394276,1739076637924,-500.0,9.109e-05,2]
[352394277,1739076637934,-500.0,9.109e-05,2]
[352394278,1739076637944,-500.0,9.109e-05,2]
[352394279,1739076637954,-500.0,9.109e-05,2]
[352394280,1739076637963,-500.0,9.109e-05,2]
[352394281,1739076637974,-500.0,9.109e-05,2]
[352394282,1739076637984,-205.084992,9.109e-05,2]
[352394283,1739076637994,-254.811809,9.109e-05,2]
[352394284,1739076638004,-500.0,9.109e-05,2]
[352394285,1739076638014,-500.0,9.109e-05,2]
[352394286,1739076638023,-500.0,9.109e-05,2]
[352394288,1739076638033,-500.0,9.109e-05,2]
[352394289,1739076638042,-500.0,9.109e-05,2]
[352394290,1739076638053,-500.0,9.109e-05,2]
[352394292,1739076638062,-500.0,9.109e-05,2]
[352394294,1739076638072,-500.0,9.109e-05,2]
[352394296,1739076638081,-500.0,9.109e-05,2]
[352394297,1739076638091,-500.0,9.109e-05,2]
[352394298,1739076638100,-515.92580162,9.109e-05,2]
[352394299,1739076638111,-500.0,9.109e-05,2]
[352394301,1739076638120,-500.0,9.109e-05,2]
[352394302,1739076638130,-659.91,9.109e-05,2]
[352394303,1739076638140,-500.0,9.109e-05,2]
[352394304,1739076638149,-776.05,9.109e-05,2]
[352394305,1739076638158,-500.0,9.109e-05,2]
[352394307,1739076638167,-1523.21,9.109e-05,2]
[352394308,1739076638176,-500.0,9.109e-05,2]
[352394311,1739076638187,-788.97,9.109e-05,2]
[352394312,1739076638196,-500.0,9.109e-05,2]
[352394314,1739076638206,-500.0,9.109e-05,2]
[352394316,1739076638215,-500.0,9.109e-05,2]
[352394317,1739076638225,-500.0,9.109e-05,2]
[352394318,1739076638234,-601.66,9.109e-05,2]
[352394319,1739076638244,-875.01,9.109e-05,2]
[352394320,1739076638255,-500.0,9.109e-05,2]
[352394321,1739076638265,-464.39171759,9.109e-05,2]
[352394322,1739076638274,-500.0,9.109e-05,2]
[352394323,1739076638284,-500.0,9.109e-05,2]
[352394324,1739076638294,-562.88,9.109e-05,2]
[352394325,1739076638303,-500.0,9.109e-05,2]
[352394326,1739076638312,-500.0,9.109e-05,2]
[352394327,1739076638321,-500.0,9.109e-05,2]
[352394328,1739076638331,-500.0,9.109e-05,2]
[352394329,1739076638341,-500.0,9.109e-05,2]
[352394330,1739076638350,-868.43,9.109e-05,2]
[352394331,1739076638360,-500.0,9.109e-05,2]
[352394332,1739076638369,-414.24274776,9.109e-05,2]
[352394333,1739076638378,-1231.28,9.109e-05,2]
[352394334,1739076638387,-500.0,9.109e-05,2]
[352394335,1739076638399,-500.0,9.109e-05,2]
[352394336,1739076638408,-500.0,9.109e-05,2]
[352394337,1739076638417,-500.0,9.109e-05,2]
[352394338,1739076638426,-500.0,9.109e-05,2]
[352394339,1739076638435,-500.0,9.109e-05,2]
[352394340,1739076638444,-500.0,9.109e-05,2]
[352394341,1739076638453,-526.88,9.109e-05,2]
[352394342,1739076638462,-500.0,9.109e-05,2]
[352394343,1739076638472,-1294.54,9.109e-05,2]
[352394344,1739076638482,-500.0,9.109e-05,2]
[352394345,1739076638491,-500.0,9.109e-05,2]
[352394346,1739076638500,-532.97,9.109e-05,2]
[352394347,1739076638509,-569.17,9.109e-05,2]
[352394348,1739076638518,-500.0,9.109e-05,2]
[352394350,1739076638527,-595.69,9.109e-05,2]
[352394351,1739076638536,-561.26,9.109e-05,2]
[352394353,1739076638547,-500.0,9.109e-05,2]
[352394355,1739076638560,-614.2,9.109e-05,2]
[352394356,1739076638570,-934.74,9.109e-05,2]
[352394357,1739076638580,-500.0,9.109e-05,2]
[352394358,1739076638591,-271.93807833,9.109e-05,2]
[352394359,1739076638608,-1217.68,9.109e-05,2]
[352394360,1739076638630,-576.79,9.109e-05,2]
[352394361,1739076638645,-500.0,9.109e-05,2]
[352394362,1739076638654,-2420.22,9.109e-05,2]
[352394364,1739076638664,-500.0,9.109e-05,2]
[352394366,1739076638673,-500.0,9.109e-05,2]
[352394368,1739076638682,-553.85,9.109e-05,2]
[352394370,1739076638691,-500.0,9.109e-05,2]
[352394373,1739076638700,-802.79,9.109e-05,2]
[352394376,1739076638710,-696.38,9.109e-05,2]
[352394379,1739076638720,-500.0,9.109e-05,2]
[352394382,1739076638729,-500.0,9.109e-05,2]
[352394385,1739076638739,-500.0,9.109e-05,2]
[352394388,1739076638748,-150.0,9.109e-05,2]
[352394390,1739076638757,-500.0,9.109e-05,2]
[352394392,1739076638768,-710.21,9.109e-05,2]
[352394394,1739076638778,-500.0,9.109e-05,2]
[352394395,1739076638787,-578.14,9.109e-05,2]
[352394398,1739076638797,-500.0,9.109e-05,2]
[352394400,1739076638807,-930.43,9.109e-05,2]
[352394402,1739076638818,-500.0,9.109e-05,2]
[352394403,1739076638828,-500.0,9.109e-05,2]
[352394405,1739076638838,-500.0,9.109e-05,2]
[352394408,1739076638848,-1820.59,9.109e-05,2]
[352394410,1739076638857,-951.34,9.109e-05,2]
[352394411,1739076638866,-500.0,9.109e-05,2]
[352394414,1739076638876,-500.0,9.109e-05,2]
[352394416,1739076638886,-500.0,9.109e-05,2]
[352394418,1739076638902,-500.96286186,9.109e-05,2]
[352394420,1739076638911,-500.0,9.109e-05,2]
[352394421,1739076638920,-593.69,9.109e-05,2]
[352394424,1739076638930,-500.0,9.109e-05,2]
[352394425,1739076638940,-500.0,9.109e-05,2]
[352394427,1739076638950,-505.59,9.109e-05,2]
[352394429,1739076638959,-500.0,9.109e-05,2]
[352394431,1739076638969,-532.13764394,9.109e-05,2]
[352394434,1739076638978,-768.25,9.109e-05,2]
[352394436,1739076638987,-1073.3,9.109e-05,2]
[352394437,1739076638997,-500.0,9.109e-05,2]
[352394439,1739076639006,-1238.26,9.144e-05,2]
[352394441,1739076639015,-176.63,9.184e-05,2]
[352394443,1739076639024,-4485.7,9.214e-05,2]
[352394445,1739076639034,-500.0,9.246e-05,2]
[352394447,1739076639043,-500.0,9.246e-05,2]
[352394449,1739076639052,-500.0,9.246e-05,2]
[352394451,1739076639062,-500.0,9.246e-05,2]
[352394453,1739076639071,-500.0,9.246e-05,2]
[352394455,1739076639080,-500.0,9.246e-05,2]
[352394457,1739076639089,-500.0,9.246e-05,2]
[352394459,1739076639098,-500.0,9.246e-05,2]
[352394461,1739076639108,-500.0,9.246e-05,2]
[352394463,1739076639117,-500.0,9.246e-05,2]
[352394464,1739076639126,-500.0,9.246e-05,2]
[352394467,1739076639136,-205.084992,9.246e-05,2]
[352394468,1739076639146,-254.811809,9.246e-05,2]
[352394471,1739076639156,-500.0,9.246e-05,2]
[352394472,1739076639166,-500.0,9.246e-05,2]
[352394474,1739076639175,-500.0,9.246e-05,2]
[352394476,1739076639183,-500.0,9.246e-05,2]
[352394478,1739076639193,-500.0,9.246e-05,2]
[352394480,1739076639203,-500.0,9.246e-05,2]
[352394482,1739076639212,-500.0,9.246e-05,2]
[352394484,1739076639222,-500.0,9.246e-05,2]
[352394486,1739076639232,-500.0,9.246e-05,2]
[352394488,1739076639241,-500.0,9.246e-05,2]
[352394490,1739076639250,-406.89431082,9.246e-05,2]
[352394492,1739076639260,-500.0,9.246e-05,2]
[352394495,1739076639270,-659.91,9.246e-05,2]
[352394497,1739076639279,-500.0,9.246e-05,2]
[352394498,1739076639289,-776.05,9.246e-05,2]
[352394500,1739076639299,-500.0,9.246e-05,2]
[352394503,1739076639308,-1523.21,9.246e-05,2]
[352394504,1739076639318,-500.0,9.246e-05,2]
[352394506,1739076639327,-788.97,9.246e-05,2]
[352394508,1739076639336,-500.0,9.246e-05,2]
[352394510,1739076639346,-500.0,9.246e-05,2]
[352394511,1739076639355,-500.0,9.246e-05,2]
[352394513,1739076639365,-500.0,9.246e-05,2]
[352394515,1739076639374,-601.66,9.246e-05,2]
[352394517,1739076639383,-875.01,9.246e-05,2]
[352394519,1739076639393,-500.0,9.246e-05,2]
[352394521,1739076639402,-500.0,9.246e-05,2]
[352394523,1739076639412,-500.0,9.246e-05,2]
[352394525,1739076639422,-562.88,9.246e-05,2]
[352394527,1739076639431,-500.0,9.246e-05,2]
[352394529,1739076639440,-500.0,9.246e-05,2]
[352394531,1739076639451,-500.0,9.246e-05,2]
[352394533,1739076639460,-500.0,9.246e-05,2]
[352394535,1739076639469,-500.0,9.246e-05,2]
[352394537,1739076639478,-868.43,9.246e-05,2]
[352394539,1739076639487,-500.0,9.246e-05,2]
[352394541,1739076639496,-1231.28,9.246e-05,2]
[352394542,1739076639505,-500.0,9.246e-05,2]
[352394544,1739076639514,-500.0,9.246e-05,2]
[352394546,1739076639524,-500.0,9.246e-05,2]
[352394549,1739076639533,-500.0,9.246e-05,2]
[352394569,1739076639543,-500.0,9.246e-05,2]
[352394571,1739076639729,-500.0,9.246e-05,2]
[352394573,1739076639738,-500.0,9.246e-05,2]
[352394575,1739076639748,-526.88,9.246e-05,2]
[352394577,1739076639758,-500.0,9.246e-05,2]
[352394579,1739076639767,-1294.54,9.246e-05,2]
[352394581,1739076639776,-500.0,9.246e-05,2]
[352394583,1739076639786,-500.0,9.246e-05,2]
[352394585,1739076639795,-532.97,9.246e-05,2]
[352394587,1739076639805,-569.17,9.246e-05,2]
[352394589,1739076639814,-500.0,9.246e-05,2]
[352394591,1739076639824,-595.69,9.246e-05,2]
[352394593,1739076639835,-561.26,9.246e-05,2]
[352394595,1739076639844,-500.0,9.246e-05,2]
[352394597,1739076639854,-614.2,9.246e-05,2]
[352394599,1739076639864,-934.74,9.246e-05,2]
[352394601,1739076639874,-500.0,9.246e-05,2]
[352394603,1739076639884,-1217.68,9.246e-05,2]
[352394605,1739076639894,-576.79,9.246e-05,2]
[352394607,1739076639903,-500.0,9.246e-05,2]
[352394609,1739076639913,-2420.22,9.246e-05,2]
[352394611,1739076639924,-500.0,9.246e-05,2]
[352394613,1739076639934,-500.0,9.246e-05,2]
[352394615,1739076639944,-553.85,9.246e-05,2]
[352394617,1739076639954,-500.0,9.246e-05,2]
[352394619,1739076639963,-802.79,9.246e-05,2]
[352394621,1739076639973,-696.38,9.246e-05,2]
[352394623,1739076639982,-500.0,9.246e-05,2]
[352394625,1739076639992,-500.0,9.246e-05,2]
[352394627,1739076640001,-500.0,9.246e-05,2]
[352394629,1739076640011,-500.0,9.246e-05,2]
[352394631,1739076640021,-710.21,9.246e-05,2]
[352394633,1739076640031,-500.0,9.246e-05,2]
[352394636,1739076640041,-578.14,9.246e-05,2]
[352394638,1739076640050,-500.0,9.246e-05,2]